[Event "Titled Tuesday Blitz May 2 Early 2023"]
[White "Soham Kamotra"]
[Black "Daneshvar, Bardiya"]
[WhiteFideId "46647490"]
[BlackFideId "12576468"]
[WhiteElo "2209"]
[BlackElo "2468"]
[Result "1-0"]
[Round "02"]
[TimeControl "180+2"]
[Date "2023.05.02"]
[WhiteClock "0:00:58"]
[BlackClock "0:01:54"]

1. d4 {[%clk 0:03:00]}  Nf6 {[%clk 0:02:59]} 2. Nf3 {[%clk 0:03:00]}  e6 {[%clk 0:02:58]} 3. Bf4 {[%clk 0:02:59]}  Bd6 {[%clk 0:02:56]} 4. Bg3 {[%clk 0:02:52]}  Bxg3 {[%clk 0:02:52]} 5. hxg3 {[%clk 0:02:52]}  d5 {[%clk 0:02:52]} 6. Nbd2 {[%clk 0:02:52]}  b6 {[%clk 0:02:52]} 7. e3 {[%clk 0:02:49]}  Bb7 {[%clk 0:02:52]} 8. Bb5+ {[%clk 0:02:37]}  Nbd7 {[%clk 0:02:49]} 9. Ne5 {[%clk 0:02:29]}  a6 {[%clk 0:02:47]} 10. Bc6 {[%clk 0:02:29]}  Bxc6 {[%clk 0:02:43]} 11. Nxc6 {[%clk 0:02:30]}  Qc8 {[%clk 0:02:44]} 12. c4 {[%clk 0:02:25]}  Qb7 {[%clk 0:02:39]} 13. cxd5 {[%clk 0:02:24]}  Nxd5 {[%clk 0:02:36]} 14. Rc1 {[%clk 0:02:19]}  Ne7 {[%clk 0:02:32]} 15. Nxe7 {[%clk 0:01:44]}  Kxe7 {[%clk 0:02:33]} 16. Qg4 {[%clk 0:01:18]}  Qxg2 {[%clk 0:02:29]} 17. Ke2 {[%clk 0:01:18]}  h6 {[%clk 0:02:10]} 18. Nf3 {[%clk 0:01:13]}  Nf6 {[%clk 0:02:04]} 19. Qf4 {[%clk 0:01:06]}  Nd5 {[%clk 0:02:03]} 20. Rxc7+ {[%clk 0:00:57]}  Nxc7 {[%clk 0:01:54]} 21. Qxc7+ {[%clk 0:00:58]} 1-0


[Site "https://www.chess.com"]

[Event "Titled Tuesday Blitz May 2 Early 2023"]
[White "Demchenko, Anton"]
[Black "Gontcharov, Vladislav"]
[WhiteFideId "4160258"]
[BlackFideId "4123492"]
[WhiteElo "2545"]
[BlackElo "2420"]
[Result "1/2-1/2"]
[Round "02"]
[TimeControl "180+2"]
[Date "2023.05.02"]
[WhiteClock "0:00:04"]
[BlackClock "0:00:05"]

1. e4 {[%clk 0:02:49]}  e6 {[%clk 0:02:58]} 2. d4 {[%clk 0:02:49]}  d5 {[%clk 0:02:58]} 3. Nc3 {[%clk 0:02:49]}  Bb4 {[%clk 0:02:57]} 4. e5 {[%clk 0:02:50]}  c5 {[%clk 0:02:57]} 5. a3 {[%clk 0:02:50]}  Bxc3+ {[%clk 0:02:57]} 6. bxc3 {[%clk 0:02:51]}  Ne7 {[%clk 0:02:57]} 7. Nf3 {[%clk 0:02:51]}  Qa5 {[%clk 0:02:54]} 8. Qd2 {[%clk 0:02:50]}  Bd7 {[%clk 0:02:54]} 9. a4 {[%clk 0:02:46]}  cxd4 {[%clk 0:02:54]} 10. cxd4 {[%clk 0:02:46]}  Qxd2+ {[%clk 0:02:54]} 11. Bxd2 {[%clk 0:02:46]}  Nbc6 {[%clk 0:02:54]} 12. Bd3 {[%clk 0:02:46]}  h6 {[%clk 0:02:40]} 13. h4 {[%clk 0:02:44]}  Nf5 {[%clk 0:02:38]} 14. Bc3 {[%clk 0:02:44]}  Rc8 {[%clk 0:02:37]} 15. Kd2 {[%clk 0:02:43]}  h5 {[%clk 0:02:30]} 16. Rhb1 {[%clk 0:02:38]}  Rc7 {[%clk 0:02:27]} 17. g3 {[%clk 0:02:33]}  O-O {[%clk 0:02:24]} 18. a5 {[%clk 0:02:26]}  f6 {[%clk 0:02:04]} 19. Bxf5 {[%clk 0:01:06]}  fxe5 {[%clk 0:02:01]} 20. Nxe5 {[%clk 0:00:50]}  Nxe5 {[%clk 0:01:25]} 21. dxe5 {[%clk 0:00:51]}  Rxf5 {[%clk 0:01:25]} 22. f4 {[%clk 0:00:46]}  Rf8 {[%clk 0:01:22]} 23. Bd4 {[%clk 0:00:46]}  Rfc8 {[%clk 0:01:18]} 24. c3 {[%clk 0:00:46]}  a6 {[%clk 0:01:18]} 25. Rb6 {[%clk 0:00:45]}  Bc6 {[%clk 0:01:16]} 26. Rg1 {[%clk 0:00:45]}  Rf7 {[%clk 0:01:13]} 27. Ke3 {[%clk 0:00:44]}  Kh7 {[%clk 0:01:12]} 28. g4 {[%clk 0:00:40]}  hxg4 {[%clk 0:01:11]} 29. Rxg4 {[%clk 0:00:41]}  g6 {[%clk 0:01:04]} 30. Rb1 {[%clk 0:00:37]}  Rf5 {[%clk 0:00:58]} 31. Rbg1 {[%clk 0:00:37]}  Be8 {[%clk 0:00:57]} 32. Rg5 {[%clk 0:00:23]}  Rc4 {[%clk 0:00:44]} 33. Rb1 {[%clk 0:00:07]}  Bc6 {[%clk 0:00:43]} 34. Rxf5 {[%clk 0:00:08]}  gxf5 {[%clk 0:00:37]} 35. Ra1 {[%clk 0:00:05]}  Be8 {[%clk 0:00:31]} 36. Ra2 {[%clk 0:00:05]}  Rc8 {[%clk 0:00:26]} 37. Rg2 {[%clk 0:00:04]}  Rc4 {[%clk 0:00:24]} 38. Rb2 {[%clk 0:00:04]}  Bc6 {[%clk 0:00:24]} 39. Ra2 {[%clk 0:00:05]}  Be8 {[%clk 0:00:23]} 40. Kf3 {[%clk 0:00:05]}  Rc7 {[%clk 0:00:17]} 41. Kg3 {[%clk 0:00:05]}  Rg7+ {[%clk 0:00:16]} 42. Kf2 {[%clk 0:00:04]}  Rg4 {[%clk 0:00:15]} 43. Ke3 {[%clk 0:00:03]}  Rxh4 {[%clk 0:00:15]} 44. Rg2 {[%clk 0:00:02]}  Rh3+ {[%clk 0:00:15]} 45. Kf2 {[%clk 0:00:03]}  Bb5 {[%clk 0:00:14]} 46. Rg3 {[%clk 0:00:03]}  Rh2+ {[%clk 0:00:14]} 47. Ke3 {[%clk 0:00:03]}  Re2+ {[%clk 0:00:14]} 48. Kf3 {[%clk 0:00:03]}  Re1 {[%clk 0:00:14]} 49. Rh3+ {[%clk 0:00:03]}  Kg7 {[%clk 0:00:14]} 50. Rg3+ {[%clk 0:00:04]}  Kf7 {[%clk 0:00:14]} 51. Rh3 {[%clk 0:00:05]}  Bc6 {[%clk 0:00:14]} 52. Rh7+ {[%clk 0:00:05]}  Kg6 {[%clk 0:00:14]} 53. Rh8 {[%clk 0:00:05]}  Kg7 {[%clk 0:00:13]} 54. Rh2 {[%clk 0:00:05]}  Ra1 {[%clk 0:00:12]} 55. Rg2+ {[%clk 0:00:03]}  Kf7 {[%clk 0:00:11]} 56. Rh2 {[%clk 0:00:03]}  Rxa5 {[%clk 0:00:11]} 57. Rh6 {[%clk 0:00:04]}  Ra2 {[%clk 0:00:09]} 58. Rf6+ {[%clk 0:00:04]}  Ke7 {[%clk 0:00:06]} 59. Ke3 {[%clk 0:00:05]}  Rc2 {[%clk 0:00:05]} 60. Kd3 {[%clk 0:00:05]}  Rc1 {[%clk 0:00:05]} 61. Bc5+ {[%clk 0:00:05]}  Kd7 {[%clk 0:00:04]} 62. Rf7+ {[%clk 0:00:05]}  Kd8 {[%clk 0:00:05]} 63. Bb6+ {[%clk 0:00:04]}  Ke8 {[%clk 0:00:05]} 64. Rf6 {[%clk 0:00:04]}  Kd7 {[%clk 0:00:03]} 65. Rf7+ {[%clk 0:00:03]}  Ke8 {[%clk 0:00:04]} 66. Rf6 {[%clk 0:00:04]}  Ke7 {[%clk 0:00:04]} 67. Bc5+ {[%clk 0:00:04]}  Kd7 {[%clk 0:00:05]} 68. Rf7+ {[%clk 0:00:04]}  Kd8 {[%clk 0:00:05]} 69. Rf8+ {[%clk 0:00:04]}  Kd7 {[%clk 0:00:05]} 70. Rf7+ {[%clk 0:00:04]} 1/2-1/2


[Site "https://www.chess.com"]

[Event "Titled Tuesday Blitz May 2 Early 2023"]
[White "Janaszak, Dawid"]
[Black "Lenderman, Aleksandr"]
[WhiteFideId "1119206"]
[BlackFideId "2021285"]
[WhiteElo "2220"]
[BlackElo "2607"]
[Result "0-1"]
[Round "02"]
[TimeControl "180+2"]
[Date "2023.05.02"]
[WhiteClock "0:00:10"]
[BlackClock "0:01:46"]

1. e4 {[%clk 0:03:00]}  c6 {[%clk 0:02:55]} 2. d4 {[%clk 0:03:00]}  d5 {[%clk 0:02:55]} 3. exd5 {[%clk 0:03:01]}  cxd5 {[%clk 0:02:55]} 4. Bd3 {[%clk 0:03:01]}  Nc6 {[%clk 0:02:54]} 5. c3 {[%clk 0:03:02]}  Qc7 {[%clk 0:02:51]} 6. Ne2 {[%clk 0:03:01]}  Bg4 {[%clk 0:02:46]} 7. O-O {[%clk 0:03:01]}  e6 {[%clk 0:02:43]} 8. Qe1 {[%clk 0:03:00]}  Bd6 {[%clk 0:02:43]} 9. f3 {[%clk 0:03:00]}  Bh5 {[%clk 0:02:41]} 10. Qh4 {[%clk 0:03:00]}  Bg6 {[%clk 0:02:41]} 11. Bxg6 {[%clk 0:03:00]}  fxg6 {[%clk 0:02:42]} 12. Bf4 {[%clk 0:02:57]}  Nge7 {[%clk 0:02:40]} 13. Na3 {[%clk 0:02:46]}  a6 {[%clk 0:02:39]} 14. Bxd6 {[%clk 0:02:41]}  Qxd6 {[%clk 0:02:40]} 15. Qg3 {[%clk 0:02:40]}  Nf5 {[%clk 0:02:36]} 16. Qxd6 {[%clk 0:02:39]}  Nxd6 {[%clk 0:02:36]} 17. Nf4 {[%clk 0:02:37]}  Kf7 {[%clk 0:02:33]} 18. Rfe1 {[%clk 0:02:34]}  Rhe8 {[%clk 0:02:26]} 19. Re2 {[%clk 0:02:31]}  g5 {[%clk 0:02:25]} 20. Nd3 {[%clk 0:02:30]}  Re7 {[%clk 0:02:25]} 21. Rae1 {[%clk 0:02:28]}  Rae8 {[%clk 0:02:23]} 22. Nc2 {[%clk 0:02:24]}  h6 {[%clk 0:02:23]} 23. Nc5 {[%clk 0:02:17]}  Nc4 {[%clk 0:02:20]} 24. Ne3 {[%clk 0:02:10]}  Nxe3 {[%clk 0:02:16]} 25. Rxe3 {[%clk 0:02:11]}  e5 {[%clk 0:02:16]} 26. dxe5 {[%clk 0:02:05]}  Nxe5 {[%clk 0:02:17]} 27. Kf1 {[%clk 0:01:27]}  a5 {[%clk 0:02:07]} 28. a4 {[%clk 0:01:14]}  b6 {[%clk 0:02:06]} 29. Nb7 {[%clk 0:00:48]}  Nc4 {[%clk 0:02:03]} 30. Rxe7+ {[%clk 0:00:30]}  Rxe7 {[%clk 0:02:04]} 31. Rxe7+ {[%clk 0:00:27]}  Kxe7 {[%clk 0:02:04]} 32. b4 {[%clk 0:00:19]}  d4 {[%clk 0:01:48]} 33. Ke2 {[%clk 0:00:12]}  dxc3 {[%clk 0:01:48]} 34. bxa5 {[%clk 0:00:12]}  c2 {[%clk 0:01:47]} 35. a6 {[%clk 0:00:10]}  c1=Q {[%clk 0:01:46]} 0-1


[Site "https://www.chess.com"]

[Event "Titled Tuesday Blitz May 2 Early 2023"]
[White "Suleymanli, Aydin"]
[Black "Zaitsev, Alexander"]
[WhiteFideId "13413937"]
[BlackFideId "4164490"]
[WhiteElo "2559"]
[BlackElo "2373"]
[Result "1-0"]
[Round "02"]
[TimeControl "180+2"]
[Date "2023.05.02"]
[WhiteClock "0:00:24"]
[BlackClock "0:00:03"]

1. e4 {[%clk 0:02:57]}  d6 {[%clk 0:03:00]} 2. d4 {[%clk 0:02:55]}  Nf6 {[%clk 0:03:00]} 3. Nc3 {[%clk 0:02:54]}  c6 {[%clk 0:03:01]} 4. a4 {[%clk 0:02:51]}  Nbd7 {[%clk 0:02:57]} 5. Nf3 {[%clk 0:02:50]}  e5 {[%clk 0:02:56]} 6. Bc4 {[%clk 0:02:48]}  Be7 {[%clk 0:02:56]} 7. O-O {[%clk 0:02:47]}  O-O {[%clk 0:02:54]} 8. Re1 {[%clk 0:02:47]}  a5 {[%clk 0:02:49]} 9. h3 {[%clk 0:02:40]}  Nb6 {[%clk 0:02:16]} 10. Bb3 {[%clk 0:02:27]}  Nfd7 {[%clk 0:02:03]} 11. Be3 {[%clk 0:02:25]}  exd4 {[%clk 0:02:01]} 12. Bxd4 {[%clk 0:02:17]}  Nc5 {[%clk 0:01:59]} 13. Bxc5 {[%clk 0:02:10]}  dxc5 {[%clk 0:01:59]} 14. Qe2 {[%clk 0:02:08]}  c4 {[%clk 0:01:31]} 15. Bxc4 {[%clk 0:01:55]}  Nxc4 {[%clk 0:01:32]} 16. Qxc4 {[%clk 0:01:53]}  Be6 {[%clk 0:01:32]} 17. Qd4 {[%clk 0:01:46]}  Bb4 {[%clk 0:01:16]} 18. Qxd8 {[%clk 0:01:16]}  Rfxd8 {[%clk 0:01:17]} 19. Re3 {[%clk 0:01:14]}  h6 {[%clk 0:00:44]} 20. g4 {[%clk 0:00:57]}  Bc5 {[%clk 0:00:32]} 21. Ree1 {[%clk 0:00:55]}  Bb4 {[%clk 0:00:30]} 22. Kg2 {[%clk 0:00:54]}  Rd7 {[%clk 0:00:17]} 23. Red1 {[%clk 0:00:50]}  Rxd1 {[%clk 0:00:10]} 24. Rxd1 {[%clk 0:00:50]}  Bxc3 {[%clk 0:00:10]} 25. bxc3 {[%clk 0:00:51]}  b5 {[%clk 0:00:10]} 26. Nd4 {[%clk 0:00:49]}  bxa4 {[%clk 0:00:02]} 27. Nxe6 {[%clk 0:00:33]}  fxe6 {[%clk 0:00:02]} 28. Ra1 {[%clk 0:00:32]}  Kf7 {[%clk 0:00:02]} 29. e5 {[%clk 0:00:25]}  Ke7 {[%clk 0:00:02]} 30. Rxa4 {[%clk 0:00:25]}  c5 {[%clk 0:00:03]} 31. f4 {[%clk 0:00:24]} 1-0


[Site "https://www.chess.com"]

[Event "Titled Tuesday Blitz May 2 Early 2023"]
[White "Budrewicz, Krzysztof"]
[Black "Durarbayli, Vasif"]
[WhiteFideId "1127950"]
[BlackFideId "13402935"]
[WhiteElo "2230"]
[BlackElo "2551"]
[Result "0-1"]
[Round "02"]
[TimeControl "180+2"]
[Date "2023.05.02"]
[WhiteClock "0:00:00"]
[BlackClock "0:00:00"]

1. d4 {[%clk 0:00:01]}  Nf6 {[%clk 0:00:01]} 2. c4 {[%clk 0:00:01]}  e6 {[%clk 0:00:01]} 3. Nc3 {[%clk 0:00:01]}  Bb4 {[%clk 0:00:01]} 4. e3 {[%clk 0:00:01]}  O-O {[%clk 0:00:01]} 5. Bd2 {[%clk 0:00:01]}  d6 {[%clk 0:00:01]} 6. Bd3 {[%clk 0:00:01]}  e5 {[%clk 0:00:01]} 7. Nge2 {[%clk 0:00:01]}  Nc6 {[%clk 0:00:01]} 8. d5 {[%clk 0:00:01]}  Ne7 {[%clk 0:00:01]} 9. e4 {[%clk 0:00:01]}  Ng6 {[%clk 0:00:01]} 10. Qc2 {[%clk 0:00:01]}  a5 {[%clk 0:00:01]} 11. O-O-O {[%clk 0:00:01]}  Ng4 {[%clk 0:00:01]} 12. Rdf1 {[%clk 0:00:01]}  Bc5 {[%clk 0:00:01]} 13. Be1 {[%clk 0:00:01]}  f5 {[%clk 0:00:01]} 14. exf5 {[%clk 0:00:01]}  Bxf5 {[%clk 0:00:01]} 15. Bxf5 {[%clk 0:00:01]}  Qg5+ {[%clk 0:00:01]} 16. Kb1 {[%clk 0:00:01]}  Qxf5 {[%clk 0:00:01]} 17. h3 {[%clk 0:00:01]}  Qxc2+ {[%clk 0:00:01]} 18. Kxc2 {[%clk 0:00:01]}  Nxf2 {[%clk 0:00:01]} 19. Bxf2 {[%clk 0:00:01]}  Bxf2 {[%clk 0:00:01]} 20. Ne4 {[%clk 0:00:01]}  Bb6 {[%clk 0:00:01]} 21. g3 {[%clk 0:00:01]}  Ne7 {[%clk 0:00:01]} 22. Kd3 {[%clk 0:00:01]}  Nf5 {[%clk 0:00:01]} 23. Rf3 {[%clk 0:00:01]}  Nd4 {[%clk 0:00:00]} 24. Nxd4 {[%clk 0:00:01]}  Bxd4 {[%clk 0:00:00]} 25. Rhf1 {[%clk 0:00:00]}  Rxf3+ {[%clk 0:00:00]} 26. Rxf3 {[%clk 0:00:00]}  Bxb2 {[%clk 0:00:00]} 27. Ng5 {[%clk 0:00:00]}  c6 {[%clk 0:00:00]} 28. Ke4 {[%clk 0:00:00]}  a4 {[%clk 0:00:00]} 29. Ne6 {[%clk 0:00:00]}  h6 {[%clk 0:00:00]} 30. dxc6 {[%clk 0:00:00]}  bxc6 {[%clk 0:00:00]} 31. Rd3 {[%clk 0:00:00]}  d5+ {[%clk 0:00:00]} 32. cxd5 {[%clk 0:00:00]}  cxd5+ {[%clk 0:00:00]} 33. Rxd5 {[%clk 0:00:00]}  Ra7 {[%clk 0:00:00]} 34. Rd8+ {[%clk 0:00:00]}  Kf7 {[%clk 0:00:00]} 35. Nc5 {[%clk 0:00:00]}  a3 {[%clk 0:00:00]} 36. Rd7+ {[%clk 0:00:00]}  Rxd7 {[%clk 0:00:00]} 37. Nxd7 {[%clk 0:00:00]}  Ke6 {[%clk 0:00:00]} 38. Nc5+ {[%clk 0:00:00]}  Kd6 {[%clk 0:00:00]} 39. Nd3 {[%clk 0:00:00]}  Bd4 {[%clk 0:00:00]} 40. g4 {[%clk 0:00:00]}  g6 {[%clk 0:00:00]} 41. Nb4 {[%clk 0:00:00]}  Kc5 {[%clk 0:00:00]} 42. Nc2 {[%clk 0:00:00]}  Bb2 {[%clk 0:00:00]} 43. Ne3 {[%clk 0:00:00]}  Bd4 {[%clk 0:00:00]} 44. Nc2 {[%clk 0:00:00]}  Bb2 {[%clk 0:00:00]} 45. Ne3 {[%clk 0:00:00]}  Bc1 {[%clk 0:00:00]} 46. Nd5 {[%clk 0:00:00]}  Bf4 {[%clk 0:00:00]} 47. h4 {[%clk 0:00:00]}  Kc4 {[%clk 0:00:00]} 48. Ne7 {[%clk 0:00:00]}  g5 {[%clk 0:00:00]} 49. h5 {[%clk 0:00:00]}  Kc3 {[%clk 0:00:00]} 50. Nf5 {[%clk 0:00:00]}  Kb2 {[%clk 0:00:00]} 51. Nxh6 {[%clk 0:00:00]}  Kxa2 {[%clk 0:00:00]} 52. Nf5 {[%clk 0:00:00]}  Kb3 {[%clk 0:00:00]} 53. h6 {[%clk 0:00:00]}  a2 {[%clk 0:00:00]} 54. h7 {[%clk 0:00:00]}  a1=Q {[%clk 0:00:00]} 55. h8=Q {[%clk 0:00:00]}  Qb1+ {[%clk 0:00:00]} 56. Kd5 {[%clk 0:00:00]}  Qd3+ {[%clk 0:00:00]} 57. Ke6 {[%clk 0:00:00]}  e4 {[%clk 0:00:00]} 58. Qc8 {[%clk 0:00:00]}  Qc4+ {[%clk 0:00:00]} 59. Qxc4+ {[%clk 0:00:00]}  Kxc4 {[%clk 0:00:00]} 0-1


[Site "https://www.chess.com"]

[Event "Titled Tuesday Blitz May 2 Early 2023"]
[White "Leenhouts, Koen"]
[Black "Atabayev, Saparmyrat"]
[WhiteFideId "1008439"]
[BlackFideId "14000571"]
[WhiteElo "2409"]
[BlackElo "2448"]
[Result "0-1"]
[Round "02"]
[TimeControl "180+2"]
[Date "2023.05.02"]
[WhiteClock "0:00:40"]
[BlackClock "0:02:37"]

1. d4 {[%clk 0:03:00]}  d5 {[%clk 0:02:58]} 2. c4 {[%clk 0:03:00]}  e6 {[%clk 0:02:57]} 3. Nf3 {[%clk 0:02:59]}  Nf6 {[%clk 0:02:57]} 4. g3 {[%clk 0:02:58]}  Be7 {[%clk 0:02:57]} 5. Bg2 {[%clk 0:02:59]}  dxc4 {[%clk 0:02:57]} 6. O-O {[%clk 0:02:57]}  O-O {[%clk 0:02:58]} 7. Qc2 {[%clk 0:02:56]}  a6 {[%clk 0:02:57]} 8. a4 {[%clk 0:02:55]}  Bd7 {[%clk 0:02:56]} 9. Qxc4 {[%clk 0:02:54]}  Bc6 {[%clk 0:02:56]} 10. Bg5 {[%clk 0:02:53]}  Bd5 {[%clk 0:02:55]} 11. Qc2 {[%clk 0:02:52]}  Be4 {[%clk 0:02:55]} 12. Qc1 {[%clk 0:02:51]}  h6 {[%clk 0:02:55]} 13. Bxf6 {[%clk 0:02:48]}  Bxf6 {[%clk 0:02:55]} 14. Nc3 {[%clk 0:02:48]}  Bh7 {[%clk 0:02:55]} 15. Rd1 {[%clk 0:02:39]}  c6 {[%clk 0:02:54]} 16. e3 {[%clk 0:02:19]}  a5 {[%clk 0:02:53]} 17. Bf1 {[%clk 0:01:44]}  Na6 {[%clk 0:02:53]} 18. Bd3 {[%clk 0:01:43]}  Bxd3 {[%clk 0:02:54]} 19. Rxd3 {[%clk 0:01:44]}  Nb4 {[%clk 0:02:54]} 20. Rd2 {[%clk 0:01:38]}  Qb6 {[%clk 0:02:55]} 21. Ne4 {[%clk 0:01:35]}  Be7 {[%clk 0:02:56]} 22. Ne5 {[%clk 0:01:33]}  Rfd8 {[%clk 0:02:55]} 23. Qc4 {[%clk 0:01:25]}  Nd5 {[%clk 0:02:47]} 24. Rc1 {[%clk 0:01:20]}  Qb4 {[%clk 0:02:46]} 25. Nd3 {[%clk 0:01:12]}  Qxc4 {[%clk 0:02:45]} 26. Rxc4 {[%clk 0:01:12]}  Nb6 {[%clk 0:02:46]} 27. b3 {[%clk 0:01:02]}  Nxc4 {[%clk 0:02:46]} 28. bxc4 {[%clk 0:01:02]}  b5 {[%clk 0:02:44]} 29. cxb5 {[%clk 0:00:57]}  cxb5 {[%clk 0:02:45]} 30. axb5 {[%clk 0:00:57]}  Rdb8 {[%clk 0:02:45]} 31. Nc3 {[%clk 0:00:49]}  Bb4 {[%clk 0:02:43]} 32. Rc2 {[%clk 0:00:39]}  Rc8 {[%clk 0:02:37]} 33. Nc5 {[%clk 0:00:39]}  Bxc5 {[%clk 0:02:37]} 34. dxc5 {[%clk 0:00:39]}  Rxc5 {[%clk 0:02:37]} 35. b6 {[%clk 0:00:40]}  Rb8 {[%clk 0:02:37]} 0-1


[Site "https://www.chess.com"]

[Event "Titled Tuesday Blitz May 2 Early 2023"]
[White "Quesada Perez, Yuniesky"]
[Black "Pham, Le Thao Nguyen"]
[WhiteFideId "3504409"]
[BlackFideId "12401226"]
[WhiteElo "2585"]
[BlackElo "2286"]
[Result "1-0"]
[Round "02"]
[TimeControl "180+2"]
[Date "2023.05.02"]
[WhiteClock "0:00:17"]
[BlackClock "0:00:03"]

1. e4 {[%clk 0:03:00]}  c6 {[%clk 0:02:59]} 2. d4 {[%clk 0:02:59]}  d5 {[%clk 0:02:59]} 3. e5 {[%clk 0:02:59]}  Bf5 {[%clk 0:02:59]} 4. Nd2 {[%clk 0:02:58]}  e6 {[%clk 0:02:55]} 5. Nb3 {[%clk 0:02:58]}  Nd7 {[%clk 0:02:49]} 6. Nf3 {[%clk 0:02:58]}  h6 {[%clk 0:02:41]} 7. Be2 {[%clk 0:02:57]}  Ne7 {[%clk 0:02:41]} 8. O-O {[%clk 0:02:56]}  Nc8 {[%clk 0:02:41]} 9. Bd2 {[%clk 0:02:55]}  Be7 {[%clk 0:02:39]} 10. a4 {[%clk 0:02:51]}  O-O {[%clk 0:02:36]} 11. a5 {[%clk 0:02:51]}  a6 {[%clk 0:02:35]} 12. Rc1 {[%clk 0:02:43]}  Na7 {[%clk 0:02:24]} 13. c4 {[%clk 0:02:42]}  Rc8 {[%clk 0:02:04]} 14. c5 {[%clk 0:02:22]}  Nb5 {[%clk 0:01:52]} 15. Bf4 {[%clk 0:02:22]}  g5 {[%clk 0:01:01]} 16. Bg3 {[%clk 0:02:20]}  h5 {[%clk 0:00:45]} 17. h3 {[%clk 0:02:13]}  h4 {[%clk 0:00:33]} 18. Bh2 {[%clk 0:02:12]}  Kg7 {[%clk 0:00:34]} 19. Bd3 {[%clk 0:01:58]}  Bg6 {[%clk 0:00:20]} 20. Re1 {[%clk 0:01:56]}  Rh8 {[%clk 0:00:20]} 21. Bxg6 {[%clk 0:01:27]}  fxg6 {[%clk 0:00:20]} 22. Nfd2 {[%clk 0:01:28]}  Qf8 {[%clk 0:00:19]} 23. Nf1 {[%clk 0:01:27]}  Qf7 {[%clk 0:00:17]} 24. Ne3 {[%clk 0:01:27]}  Rcf8 {[%clk 0:00:17]} 25. Rf1 {[%clk 0:01:27]}  Bd8 {[%clk 0:00:15]} 26. Qg4 {[%clk 0:01:26]}  Qe7 {[%clk 0:00:14]} 27. f4 {[%clk 0:01:08]}  gxf4 {[%clk 0:00:15]} 28. Bxf4 {[%clk 0:01:03]}  Rh5 {[%clk 0:00:15]} 29. Rf3 {[%clk 0:00:56]}  Rf7 {[%clk 0:00:06]} 30. Rcf1 {[%clk 0:00:55]}  Rff5 {[%clk 0:00:06]} 31. R3f2 {[%clk 0:00:49]}  Nf8 {[%clk 0:00:06]} 32. Bh2 {[%clk 0:00:39]}  Qf7 {[%clk 0:00:06]} 33. Nxf5+ {[%clk 0:00:30]}  exf5 {[%clk 0:00:07]} 34. e6 {[%clk 0:00:31]}  Nxe6 {[%clk 0:00:07]} 35. Be5+ {[%clk 0:00:30]}  Bf6 {[%clk 0:00:07]} 36. Qe2 {[%clk 0:00:27]}  Rg5 {[%clk 0:00:07]} 37. Qe3 {[%clk 0:00:26]}  Bxe5 {[%clk 0:00:05]} 38. Qxe5+ {[%clk 0:00:26]}  Qf6 {[%clk 0:00:06]} 39. Qb8 {[%clk 0:00:24]}  Qf7 {[%clk 0:00:04]} 40. Re1 {[%clk 0:00:22]}  Rg3 {[%clk 0:00:04]} 41. Qe5+ {[%clk 0:00:21]}  Kh7 {[%clk 0:00:02]} 42. Qxe6 {[%clk 0:00:19]}  Qxe6 {[%clk 0:00:02]} 43. Rxe6 {[%clk 0:00:20]}  Rxb3 {[%clk 0:00:02]} 44. Re7+ {[%clk 0:00:20]}  Kh6 {[%clk 0:00:03]} 45. Rxb7 {[%clk 0:00:21]}  Nxd4 {[%clk 0:00:03]} 46. Rxb3 {[%clk 0:00:20]}  Nxb3 {[%clk 0:00:04]} 47. Re2 {[%clk 0:00:20]}  Nxa5 {[%clk 0:00:04]} 48. b4 {[%clk 0:00:19]}  Nc4 {[%clk 0:00:03]} 49. Ra2 {[%clk 0:00:19]}  d4 {[%clk 0:00:03]} 50. Kf2 {[%clk 0:00:19]}  d3 {[%clk 0:00:04]} 51. Rxa6 {[%clk 0:00:19]}  f4 {[%clk 0:00:05]} 52. Rxc6 {[%clk 0:00:19]}  Ne3 {[%clk 0:00:03]} 53. Rd6 {[%clk 0:00:18]}  Nc2 {[%clk 0:00:03]} 54. c6 {[%clk 0:00:17]}  Nxb4 {[%clk 0:00:03]} 55. c7 {[%clk 0:00:17]} 1-0


[Site "https://www.chess.com"]